Workbook

Sheet J8 Calver Rd
A1: Warrington - Manual Traffic Survey, Wednesday 3rd April 2019
A3: Produced by Road Data Services Ltd
A5: Junction: | B5: (8) Calver Road / A574
A7: Approach: | B7: Calver Road
B9: Left to A574 (East) | J9: Right to A574 (West)
A10: TIME | B10: P/CYCLE | C10: M/CYCLE | D10: CAR | E10: LGV | F10: OGV1 | G10: OGV2 | H10: BUS | I10: TOTAL | J10: P/CYCLE | K10: M/CYCLE | L10: CAR | M10: LGV | N10: OGV1 | O10: OGV2 | P10: BUS | Q10: TOTAL
A11: 0700 - 0715 | B11: 0 | C11: 1 | D11: 80 | E11: 18 | F11: 8 | G11: 0 | H11: 0 | I11: =SUM(B11:H11) -> 107 | J11: 0 | K11: 0 | L11: 0 | M11: 0 | N11: 1 | O11: 0 | P11: 0 | Q11: =SUM(J11:P11) -> 1
A12: 0715 - 0730 | B12: 0 | C12: 0 | D12: 81 | E12: 26 | F12: 12 | G12: 3 | H12: 0 | I12: 122 | J12: 0 | K12: 0 | L12: 0 | M12: 0 | N12: 0 | O12: 0 | P12: 0 | Q12: 0
A13: 0730 - 0745 | B13: 0 | C13: 3 | D13: 99 | E13: 22 | F13: 6 | G13: 3 | H13: 0 | I13: 133 | J13: 0 | K13: 0 | L13: 0 | M13: 0 | N13: 0 | O13: 0 | P13: 0 | Q13: 0
A14: 0745 - 0800 | B14: 1 | C14: 0 | D14: 93 | E14: 16 | F14: 8 | G14: 3 | H14: 0 | I14: 121 | J14: 0 | K14: 0 | L14: 0 | M14: 0 | N14: 0 | O14: 0 | P14: 0 | Q14: 0
A15: Hourly Total | B15: =SUM(B11:B14) -> 1 | C15: 4 | D15: 353 | E15: 82 | F15: 34 | G15: 9 | H15: 0 | I15: 483 | J15: =SUM(J11:J14) -> 0 | K15: 0 | L15: 0 | M15: 0 | N15: 1 | O15: 0 | P15: 0 | Q15: 1
A16: 0800 - 0815 | B16: 0 | C16: 0 | D16: 92 | E16: 24 | F16: 7 | G16: 3 | H16: 0 | I16: 126 | J16: 0 | K16: 0 | L16: 0 | M16: 0 | N16: 0 | O16: 0 | P16: 0 | Q16: 0
A17: 0815 - 0830 | B17: 0 | C17: 1 | D17: 87 | E17: 19 | F17: 6 | G17: 6 | H17: 0 | I17: 119 | J17: 0 | K17: 0 | L17: 0 | M17: 0 | N17: 0 | O17: 0 | P17: 0 | Q17: 0
A18: 0830 - 0845 | B18: 0 | C18: 0 | D18: 81 | E18: 14 | F18: 9 | G18: 2 | H18: 0 | I18: 106 | J18: 0 | K18: 0 | L18: 0 | M18: 0 | N18: 0 | O18: 0 | P18: 0 | Q18: 0
A19: 0845 - 0900 | B19: 0 | C19: 0 | D19: 74 | E19: 19 | F19: 4 | G19: 10 | H19: 0 | I19: 107 | J19: 0 | K19: 0 | L19: 0 | M19: 0 | N19: 0 | O19: 0 | P19: 0 | Q19: 0
A20: Hourly Total | B20: =SUM(B16:B19) -> 0 | C20: 1 | D20: 334 | E20: 76 | F20: 26 | G20: 21 | H20: 0 | I20: 458 | J20: =SUM(J16:J19) -> 0 | K20: 0 | L20: 0 | M20: 0 | N20: 0 | O20: 0 | P20: 0 | Q20: 0
A21: 0900 - 0915 | B21: 0 | C21: 1 | D21: 74 | E21: 16 | F21: 2 | G21: 2 | H21: 0 | I21: 95 | J21: 0 | K21: 0 | L21: 0 | M21: 0 | N21: 0 | O21: 0 | P21: 0 | Q21: 0
A22: 0915 - 0930 | B22: 0 | C22: 1 | D22: 63 | E22: 13 | F22: 4 | G22: 4 | H22: 0 | I22: 85 | J22: 0 | K22: 0 | L22: 0 | M22: 0 | N22: 0 | O22: 0 | P22: 0 | Q22: 0
A23: 0930 - 0945 | B23: 0 | C23: 0 | D23: 52 | E23: 17 | F23: 11 | G23: 4 | H23: 0 | I23: 84 | J23: 0 | K23: 0 | L23: 0 | M23: 0 | N23: 0 | O23: 0 | P23: 0 | Q23: 0
A24: 0945 - 1000 | B24: 0 | C24: 0 | D24: 63 | E24: 17 | F24: 6 | G24: 2 | H24: 0 | I24: 88 | J24: 0 | K24: 0 | L24: 0 | M24: 0 | N24: 0 | O24: 0 | P24: 0 | Q24: 0
A25: Hourly Total | B25: =SUM(B21:B24) -> 0 | C25: 2 | D25: 252 | E25: 63 | F25: 23 | G25: 12 | H25: 0 | I25: 352 | J25: =SUM(J21:J24) -> 0 | K25: 0 | L25: 0 | M25: 0 | N25: 0 | O25: 0 | P25: 0 | Q25: 0
A27: Session Total | B27: =SUM(B25,B20,B15) -> 1 | C27: 7 | D27: 939 | E27: 221 | F27: 83 | G27: 42 | H27: 0 | I27: 1293 | J27: 0 | K27: 0 | L27: 0 | M27: 0 | N27: 1 | O27: 0 | P27: 0 | Q27: 1
A29: 1600 - 1615 | B29: 0 | C29: 1 | D29: 93 | E29: 11 | F29: 3 | G29: 4 | H29: 0 | I29: =SUM(B29:H29) -> 112 | J29: 0 | K29: 0 | L29: 0 | M29: 0 | N29: 0 | O29: 0 | P29: 0 | Q29: =SUM(J29:P29) -> 0
A30: 1615 - 1630 | B30: 0 | C30: 1 | D30: 79 | E30: 18 | F30: 3 | G30: 3 | H30: 0 | I30: 104 | J30: 0 | K30: 0 | L30: 0 | M30: 0 | N30: 0 | O30: 0 | P30: 0 | Q30: 0
A31: 1630 - 1645 | B31: 0 | C31: 1 | D31: 109 | E31: 13 | F31: 2 | G31: 4 | H31: 0 | I31: 129 | J31: 0 | K31: 0 | L31: 0 | M31: 0 | N31: 0 | O31: 0 | P31: 0 | Q31: 0
A32: 1645 - 1700 | B32: 0 | C32: 0 | D32: 95 | E32: 19 | F32: 2 | G32: 4 | H32: 0 | I32: 120 | J32: 0 | K32: 0 | L32: 0 | M32: 0 | N32: 0 | O32: 0 | P32: 0 | Q32: 0
A33: Hourly Total | B33: =SUM(B29:B32) -> 0 | C33: 3 | D33: 376 | E33: 61 | F33: 10 | G33: 15 | H33: 0 | I33: 465 | J33: =SUM(J29:J32) -> 0 | K33: 0 | L33: 0 | M33: 0 | N33: 0 | O33: 0 | P33: 0 | Q33: 0
A34: 1700 - 1715 | B34: 2 | C34: 1 | D34: 140 | E34: 12 | F34: 2 | G34: 1 | H34: 0 | I34: 158 | J34: 0 | K34: 0 | L34: 0 | M34: 0 | N34: 0 | O34: 0 | P34: 0 | Q34: 0
A35: 1715 - 1730 | B35: 0 | C35: 0 | D35: 103 | E35: 6 | F35: 4 | G35: 4 | H35: 0 | I35: 117 | J35: 0 | K35: 0 | L35: 0 | M35: 0 | N35: 0 | O35: 0 | P35: 0 | Q35: 0
A36: 1730 - 1745 | B36: 0 | C36: 1 | D36: 131 | E36: 11 | F36: 1 | G36: 3 | H36: 0 | I36: 147 | J36: 0 | K36: 0 | L36: 0 | M36: 0 | N36: 0 | O36: 0 | P36: 0 | Q36: 0
A37: 1745 - 1800 | B37: 0 | C37: 1 | D37: 79 | E37: 14 | F37: 1 | G37: 1 | H37: 0 | I37: 96 | J37: 0 | K37: 0 | L37: 0 | M37: 0 | N37: 0 | O37: 0 | P37: 0 | Q37: 0
A38: Hourly Total | B38: =SUM(B34:B37) -> 2 | C38: 3 | D38: 453 | E38: 43 | F38: 8 | G38: 9 | H38: 0 | I38: 518 | J38: =SUM(J34:J37) -> 0 | K38: 0 | L38: 0 | M38: 0 | N38: 0 | O38: 0 | P38: 0 | Q38: 0
A39: 1800 - 1815 | B39: 0 | C39: 0 | D39: 80 | E39: 5 | F39: 1 | G39: 7 | H39: 0 | I39: 93 | J39: 0 | K39: 0 | L39: 0 | M39: 0 | N39: 0 | O39: 0 | P39: 0 | Q39: 0
A40: 1815 - 1830 | B40: 0 | C40: 0 | D40: 92 | E40: 8 | F40: 5 | G40: 4 | H40: 0 | I40: 109 | J40: 0 | K40: 0 | L40: 0 | M40: 0 | N40: 0 | O40: 0 | P40: 0 | Q40: 0
A41: 1830 - 1845 | B41: 0 | C41: 0 | D41: 81 | E41: 4 | F41: 0 | G41: 3 | H41: 0 | I41: 88 | J41: 0 | K41: 0 | L41: 0 | M41: 0 | N41: 0 | O41: 0 | P41: 0 | Q41: 0
A42: 1845 - 1900 | B42: 0 | C42: 1 | D42: 78 | E42: 8 | F42: 4 | G42: 2 | H42: 0 | I42: 93 | J42: 0 | K42: 0 | L42: 0 | M42: 0 | N42: 0 | O42: 0 | P42: 0 | Q42: 0
A43: Hourly Total | B43: =SUM(B39:B42) -> 0 | C43: 1 | D43: 331 | E43: 25 | F43: 10 | G43: 16 | H43: 0 | I43: 383 | J43: =SUM(J39:J42) -> 0 | K43: 0 | L43: 0 | M43: 0 | N43: 0 | O43: 0 | P43: 0 | Q43: 0
A45: Session Total | B45: =SUM(B43,B38,B33) -> 2 | C45: 7 | D45: 1160 | E45: 129 | F45: 28 | G45: 40 | H45: 0 | I45: 1366 | J45: 0 | K45: 0 | L45: 0 | M45: 0 | N45: 0 | O45: 0 | P45: 0 | Q45: 0

Sheet J8 A574 E
A1: Warrington - Manual Traffic Survey, Wednesday 3rd April 2019
A3: Produced by Road Data Services Ltd
A5: Junction: | B5: (8) Calver Road / A574
A7: Approach: | B7: A574 (East)
B9: W/B to A574 (West) | J9: Right to Calver Road
A10: TIME | B10: P/CYCLE | C10: M/CYCLE | D10: CAR | E10: LGV | F10: OGV1 | G10: OGV2 | H10: BUS | I10: TOTAL | J10: P/CYCLE | K10: M/CYCLE | L10: CAR | M10: LGV | N10: OGV1 | O10: OGV2 | P10: BUS | Q10: TOTAL
A11: 0700 - 0715 | B11: 0 | C11: 1 | D11: 63 | E11: 13 | F11: 6 | G11: 0 | H11: 1 | I11: =SUM(B11:H11) -> 84 | J11: 1 | K11: 1 | L11: 40 | M11: 7 | N11: 2 | O11: 1 | P11: 0 | Q11: =SUM(J11:P11) -> 52
A12: 0715 - 0730 | B12: 0 | C12: 2 | D12: 103 | E12: 15 | F12: 5 | G12: 2 | H12: 0 | I12: 127 | J12: 0 | K12: 0 | L12: 39 | M12: 14 | N12: 1 | O12: 2 | P12: 0 | Q12: 56
A13: 0730 - 0745 | B13: 0 | C13: 6 | D13: 123 | E13: 13 | F13: 5 | G13: 2 | H13: 0 | I13: 149 | J13: 1 | K13: 0 | L13: 63 | M13: 23 | N13: 7 | O13: 4 | P13: 0 | Q13: 98
A14: 0745 - 0800 | B14: 1 | C14: 0 | D14: 188 | E14: 29 | F14: 5 | G14: 2 | H14: 1 | I14: 226 | J14: 1 | K14: 1 | L14: 57 | M14: 13 | N14: 3 | O14: 2 | P14: 0 | Q14: 77
A15: Hourly Total | B15: =SUM(B11:B14) -> 1 | C15: 9 | D15: 477 | E15: 70 | F15: 21 | G15: 6 | H15: 2 | I15: =SUM(B15:H15) -> 586 | J15: =SUM(J11:J14) -> 3 | K15: 2 | L15: 199 | M15: 57 | N15: 13 | O15: 9 | P15: 0 | Q15: 283
A16: 0800 - 0815 | B16: 0 | C16: 3 | D16: 110 | E16: 14 | F16: 4 | G16: 2 | H16: 0 | I16: 133 | J16: 1 | K16: 0 | L16: 55 | M16: 21 | N16: 6 | O16: 1 | P16: 0 | Q16: 84
A17: 0815 - 0830 | B17: 1 | C17: 1 | D17: 130 | E17: 14 | F17: 3 | G17: 1 | H17: 0 | I17: 150 | J17: 1 | K17: 1 | L17: 70 | M17: 8 | N17: 2 | O17: 1 | P17: 0 | Q17: 83
A18: 0830 - 0845 | B18: 1 | C18: 1 | D18: 149 | E18: 12 | F18: 5 | G18: 0 | H18: 0 | I18: 168 | J18: 0 | K18: 1 | L18: 44 | M18: 5 | N18: 3 | O18: 2 | P18: 0 | Q18: 55
A19: 0845 - 0900 | B19: 0 | C19: 3 | D19: 175 | E19: 15 | F19: 4 | G19: 2 | H19: 0 | I19: 199 | J19: 0 | K19: 0 | L19: 51 | M19: 11 | N19: 2 | O19: 3 | P19: 0 | Q19: 67
A20: Hourly Total | B20: =SUM(B16:B19) -> 2 | C20: 8 | D20: 564 | E20: 55 | F20: 16 | G20: 5 | H20: 0 | I20: =SUM(B20:H20) -> 650 | J20: =SUM(J16:J19) -> 2 | K20: 2 | L20: 220 | M20: 45 | N20: 13 | O20: 7 | P20: 0 | Q20: 289
A21: 0900 - 0915 | B21: 0 | C21: 0 | D21: 155 | E21: 23 | F21: 7 | G21: 7 | H21: 1 | I21: 193 | J21: 0 | K21: 0 | L21: 49 | M21: 10 | N21: 5 | O21: 3 | P21: 0 | Q21: 67
A22: 0915 - 0930 | B22: 0 | C22: 0 | D22: 129 | E22: 23 | F22: 6 | G22: 2 | H22: 2 | I22: 162 | J22: 0 | K22: 2 | L22: 46 | M22: 14 | N22: 7 | O22: 2 | P22: 0 | Q22: 71
A23: 0930 - 0945 | B23: 0 | C23: 0 | D23: 151 | E23: 22 | F23: 4 | G23: 1 | H23: 0 | I23: 178 | J23: 0 | K23: 0 | L23: 39 | M23: 7 | N23: 8 | O23: 3 | P23: 0 | Q23: 57
A24: 0945 - 1000 | B24: 0 | C24: 1 | D24: 165 | E24: 23 | F24: 7 | G24: 0 | H24: 0 | I24: 196 | J24: 0 | K24: 0 | L24: 42 | M24: 6 | N24: 5 | O24: 6 | P24: 0 | Q24: 59
A25: Hourly Total | B25: =SUM(B21:B24) -> 0 | C25: 1 | D25: 600 | E25: 91 | F25: 24 | G25: 10 | H25: 3 | I25: 729 | J25: =SUM(J21:J24) -> 0 | K25: 2 | L25: 176 | M25: 37 | N25: 25 | O25: 14 | P25: 0 | Q25: 254
A27: Session Total | B27: =SUM(B25,B20,B15) -> 3 | C27: 18 | D27: 1641 | E27: 216 | F27: 61 | G27: 21 | H27: 5 | I27: 1965 | J27: 5 | K27: 6 | L27: 595 | M27: 139 | N27: 51 | O27: 30 | P27: 0 | Q27: 826
A29: 1600 - 1615 | B29: 0 | C29: 1 | D29: 188 | E29: 22 | F29: 3 | G29: 0 | H29: 0 | I29: =SUM(B29:H29) -> 214 | J29: 0 | K29: 0 | L29: 74 | M29: 16 | N29: 9 | O29: 5 | P29: 0 | Q29: =SUM(J29:P29) -> 104
A30: 1615 - 1630 | B30: 0 | C30: 1 | D30: 195 | E30: 22 | F30: 4 | G30: 1 | H30: 1 | I30: 224 | J30: 0 | K30: 0 | L30: 77 | M30: 14 | N30: 8 | O30: 3 | P30: 0 | Q30: 102
A31: 1630 - 1645 | B31: 0 | C31: 2 | D31: 207 | E31: 19 | F31: 3 | G31: 0 | H31: 0 | I31: 231 | J31: 0 | K31: 2 | L31: 94 | M31: 17 | N31: 4 | O31: 2 | P31: 0 | Q31: 119
A32: 1645 - 1700 | B32: 0 | C32: 1 | D32: 230 | E32: 18 | F32: 6 | G32: 1 | H32: 2 | I32: 258 | J32: 0 | K32: 0 | L32: 87 | M32: 12 | N32: 2 | O32: 1 | P32: 0 | Q32: 102
A33: Hourly Total | B33: =SUM(B29:B32) -> 0 | C33: 5 | D33: 820 | E33: 81 | F33: 16 | G33: 2 | H33: 3 | I33: 927 | J33: =SUM(J29:J32) -> 0 | K33: 2 | L33: 332 | M33: 59 | N33: 23 | O33: 11 | P33: 0 | Q33: 427
A34: 1700 - 1715 | B34: 0 | C34: 1 | D34: 207 | E34: 16 | F34: 0 | G34: 0 | H34: 1 | I34: 225 | J34: 0 | K34: 1 | L34: 89 | M34: 5 | N34: 3 | O34: 0 | P34: 0 | Q34: 98
A35: 1715 - 1730 | B35: 0 | C35: 1 | D35: 192 | E35: 12 | F35: 2 | G35: 0 | H35: 0 | I35: 207 | J35: 0 | K35: 0 | L35: 100 | M35: 8 | N35: 4 | O35: 5 | P35: 0 | Q35: 117
A36: 1730 - 1745 | B36: 0 | C36: 3 | D36: 200 | E36: 18 | F36: 2 | G36: 2 | H36: 0 | I36: 225 | J36: 0 | K36: 0 | L36: 89 | M36: 7 | N36: 3 | O36: 4 | P36: 0 | Q36: 103
A37: 1745 - 1800 | B37: 1 | C37: 1 | D37: 236 | E37: 13 | F37: 1 | G37: 1 | H37: 0 | I37: 253 | J37: 0 | K37: 0 | L37: 83 | M37: 9 | N37: 4 | O37: 4 | P37: 0 | Q37: 100
A38: Hourly Total | B38: =SUM(B34:B37) -> 1 | C38: 6 | D38: 835 | E38: 59 | F38: 5 | G38: 3 | H38: 1 | I38: 910 | J38: =SUM(J34:J37) -> 0 | K38: 1 | L38: 361 | M38: 29 | N38: 14 | O38: 13 | P38: 0 | Q38: 418
A39: 1800 - 1815 | B39: 0 | C39: 2 | D39: 202 | E39: 22 | F39: 2 | G39: 1 | H39: 0 | I39: 229 | J39: 0 | K39: 0 | L39: 90 | M39: 6 | N39: 4 | O39: 4 | P39: 0 | Q39: 104
A40: 1815 - 1830 | B40: 0 | C40: 0 | D40: 210 | E40: 17 | F40: 0 | G40: 1 | H40: 0 | I40: 228 | J40: 0 | K40: 0 | L40: 80 | M40: 9 | N40: 3 | O40: 3 | P40: 0 | Q40: 95
A41: 1830 - 1845 | B41: 0 | C41: 0 | D41: 185 | E41: 9 | F41: 2 | G41: 0 | H41: 0 | I41: 196 | J41: 0 | K41: 0 | L41: 74 | M41: 7 | N41: 1 | O41: 4 | P41: 0 | Q41: 86
A42: 1845 - 1900 | B42: 0 | C42: 0 | D42: 167 | E42: 10 | F42: 0 | G42: 1 | H42: 0 | I42: 178 | J42: 0 | K42: 0 | L42: 47 | M42: 7 | N42: 3 | O42: 3 | P42: 0 | Q42: 60
A43: Hourly Total | B43: =SUM(B39:B42) -> 0 | C43: 2 | D43: 764 | E43: 58 | F43: 4 | G43: 3 | H43: 0 | I43: 831 | J43: =SUM(J39:J42) -> 0 | K43: 0 | L43: 291 | M43: 29 | N43: 11 | O43: 14 | P43: 0 | Q43: 345
A45: Session Total | B45: =SUM(B43,B38,B33) -> 1 | C45: 13 | D45: 2419 | E45: 198 | F45: 25 | G45: 8 | H45: 4 | I45: 2668 | J45: 0 | K45: 3 | L45: 984 | M45: 117 | N45: 48 | O45: 38 | P45: 0 | Q45: 1190

Sheet J8 A574 W
A1: Warrington - Manual Traffic Survey, Wednesday 3rd April 2019
A3: Produced by Road Data Services Ltd
A5: Junction: | B5: (8) Calver Road / A574
A7: Approach: | B7: A574 (West)
B9: Left to Calver Road | J9: E/B to A574 (East)
A10: TIME | B10: P/CYCLE | C10: M/CYCLE | D10: CAR | E10: LGV | F10: OGV1 | G10: OGV2 | H10: BUS | I10: TOTAL | J10: P/CYCLE | K10: M/CYCLE | L10: CAR | M10: LGV | N10: OGV1 | O10: OGV2 | P10: BUS | Q10: TOTAL
A11: 0700 - 0715 | B11: 0 | C11: 0 | D11: 11 | E11: 6 | F11: 0 | G11: 0 | H11: 0 | I11: =SUM(B11:H11) -> 17 | J11: 2 | K11: 2 | L11: 142 | M11: 22 | N11: 5 | O11: 0 | P11: 0 | Q11: =SUM(J11:P11) -> 173
A12: 0715 - 0730 | B12: 0 | C12: 0 | D12: 20 | E12: 2 | F12: 0 | G12: 1 | H12: 0 | I12: 23 | J12: 0 | K12: 0 | L12: 177 | M12: 15 | N12: 7 | O12: 0 | P12: 0 | Q12: 199
A13: 0730 - 0745 | B13: 1 | C13: 0 | D13: 19 | E13: 0 | F13: 0 | G13: 0 | H13: 0 | I13: 20 | J13: 0 | K13: 2 | L13: 190 | M13: 14 | N13: 6 | O13: 0 | P13: 0 | Q13: 212
A14: 0745 - 0800 | B14: 0 | C14: 0 | D14: 26 | E14: 0 | F14: 0 | G14: 0 | H14: 0 | I14: 26 | J14: 0 | K14: 0 | L14: 201 | M14: 17 | N14: 7 | O14: 0 | P14: 0 | Q14: 225
A15: Hourly Total | B15: =SUM(B11:B14) -> 1 | C15: 0 | D15: 76 | E15: 8 | F15: 0 | G15: 1 | H15: 0 | I15: 86 | J15: =SUM(J11:J14) -> 2 | K15: 4 | L15: 710 | M15: 68 | N15: 25 | O15: 0 | P15: 0 | Q15: =SUM(J15:P15) -> 809
A16: 0800 - 0815 | B16: 0 | C16: 0 | D16: 25 | E16: 3 | F16: 2 | G16: 0 | H16: 0 | I16: 30 | J16: 1 | K16: 1 | L16: 166 | M16: 15 | N16: 5 | O16: 2 | P16: 0 | Q16: 190
A17: 0815 - 0830 | B17: 0 | C17: 0 | D17: 27 | E17: 7 | F17: 1 | G17: 1 | H17: 0 | I17: 36 | J17: 0 | K17: 0 | L17: 168 | M17: 23 | N17: 7 | O17: 2 | P17: 0 | Q17: 200
A18: 0830 - 0845 | B18: 0 | C18: 0 | D18: 11 | E18: 3 | F18: 0 | G18: 1 | H18: 0 | I18: 15 | J18: 0 | K18: 0 | L18: 175 | M18: 20 | N18: 7 | O18: 1 | P18: 0 | Q18: 203
A19: 0845 - 0900 | B19: 0 | C19: 0 | D19: 32 | E19: 5 | F19: 1 | G19: 0 | H19: 0 | I19: 38 | J19: 0 | K19: 1 | L19: 189 | M19: 22 | N19: 4 | O19: 1 | P19: 0 | Q19: 217
A20: Hourly Total | B20: =SUM(B16:B19) -> 0 | C20: 0 | D20: 95 | E20: 18 | F20: 4 | G20: 2 | H20: 0 | I20: 119 | J20: =SUM(J16:J19) -> 1 | K20: 2 | L20: 698 | M20: 80 | N20: 23 | O20: 6 | P20: 0 | Q20: =SUM(J20:P20) -> 810
A21: 0900 - 0915 | B21: 0 | C21: 0 | D21: 24 | E21: 5 | F21: 2 | G21: 1 | H21: 0 | I21: 32 | J21: 0 | K21: 0 | L21: 192 | M21: 21 | N21: 3 | O21: 1 | P21: 0 | Q21: 217
A22: 0915 - 0930 | B22: 0 | C22: 0 | D22: 18 | E22: 3 | F22: 2 | G22: 1 | H22: 0 | I22: 24 | J22: 0 | K22: 1 | L22: 104 | M22: 34 | N22: 3 | O22: 0 | P22: 2 | Q22: 144
A23: 0930 - 0945 | B23: 0 | C23: 0 | D23: 16 | E23: 3 | F23: 1 | G23: 3 | H23: 0 | I23: 23 | J23: 0 | K23: 0 | L23: 108 | M23: 20 | N23: 7 | O23: 2 | P23: 1 | Q23: 138
A24: 0945 - 1000 | B24: 0 | C24: 0 | D24: 16 | E24: 2 | F24: 2 | G24: 0 | H24: 0 | I24: 20 | J24: 0 | K24: 0 | L24: 108 | M24: 16 | N24: 12 | O24: 3 | P24: 0 | Q24: 139
A25: Hourly Total | B25: =SUM(B21:B24) -> 0 | C25: 0 | D25: 74 | E25: 13 | F25: 7 | G25: 5 | H25: 0 | I25: 99 | J25: =SUM(J21:J24) -> 0 | K25: 1 | L25: 512 | M25: 91 | N25: 25 | O25: 6 | P25: 3 | Q25: 638
A27: Session Total | B27: =SUM(B25,B20,B15) -> 1 | C27: 0 | D27: 245 | E27: 39 | F27: 11 | G27: 8 | H27: 0 | I27: 304 | J27: 3 | K27: 7 | L27: 1920 | M27: 239 | N27: 73 | O27: 12 | P27: 3 | Q27: 2257
A29: 1600 - 1615 | B29: 0 | C29: 0 | D29: 26 | E29: 2 | F29: 3 | G29: 1 | H29: 0 | I29: =SUM(B29:H29) -> 32 | J29: 2 | K29: 1 | L29: 212 | M29: 24 | N29: 1 | O29: 0 | P29: 0 | Q29: =SUM(J29:P29) -> 240
A30: 1615 - 1630 | B30: 0 | C30: 0 | D30: 28 | E30: 1 | F30: 2 | G30: 0 | H30: 0 | I30: 31 | J30: 0 | K30: 2 | L30: 175 | M30: 18 | N30: 5 | O30: 1 | P30: 0 | Q30: 201
A31: 1630 - 1645 | B31: 0 | C31: 1 | D31: 35 | E31: 5 | F31: 2 | G31: 0 | H31: 0 | I31: 43 | J31: 0 | K31: 0 | L31: 207 | M31: 13 | N31: 4 | O31: 0 | P31: 1 | Q31: 225
A32: 1645 - 1700 | B32: 0 | C32: 0 | D32: 34 | E32: 5 | F32: 2 | G32: 1 | H32: 1 | I32: 43 | J32: 1 | K32: 2 | L32: 190 | M32: 23 | N32: 3 | O32: 1 | P32: 1 | Q32: 221
A33: Hourly Total | B33: =SUM(B29:B32) -> 0 | C33: 1 | D33: 123 | E33: 13 | F33: 9 | G33: 2 | H33: 1 | I33: 149 | J33: =SUM(J29:J32) -> 3 | K33: 5 | L33: 784 | M33: 78 | N33: 13 | O33: 2 | P33: 2 | Q33: 887
A34: 1700 - 1715 | B34: 0 | C34: 1 | D34: 31 | E34: 1 | F34: 0 | G34: 1 | H34: 0 | I34: 34 | J34: 2 | K34: 3 | L34: 174 | M34: 11 | N34: 0 | O34: 0 | P34: 1 | Q34: 191
A35: 1715 - 1730 | B35: 0 | C35: 0 | D35: 47 | E35: 2 | F35: 2 | G35: 0 | H35: 0 | I35: 51 | J35: 0 | K35: 0 | L35: 198 | M35: 8 | N35: 2 | O35: 0 | P35: 1 | Q35: 209
A36: 1730 - 1745 | B36: 0 | C36: 1 | D36: 34 | E36: 0 | F36: 1 | G36: 0 | H36: 0 | I36: 36 | J36: 0 | K36: 2 | L36: 171 | M36: 12 | N36: 0 | O36: 1 | P36: 0 | Q36: 186
A37: 1745 - 1800 | B37: 0 | C37: 0 | D37: 38 | E37: 4 | F37: 0 | G37: 0 | H37: 0 | I37: 42 | J37: 0 | K37: 1 | L37: 163 | M37: 16 | N37: 4 | O37: 2 | P37: 0 | Q37: 186
A38: Hourly Total | B38: =SUM(B34:B37) -> 0 | C38: 2 | D38: 150 | E38: 7 | F38: 3 | G38: 1 | H38: 0 | I38: 163 | J38: =SUM(J34:J37) -> 2 | K38: 6 | L38: 706 | M38: 47 | N38: 6 | O38: 3 | P38: 2 | Q38: 772
A39: 1800 - 1815 | B39: 0 | C39: 0 | D39: 32 | E39: 2 | F39: 1 | G39: 0 | H39: 0 | I39: 35 | J39: 1 | K39: 1 | L39: 175 | M39: 9 | N39: 2 | O39: 0 | P39: 0 | Q39: 188
A40: 1815 - 1830 | B40: 0 | C40: 0 | D40: 23 | E40: 3 | F40: 0 | G40: 0 | H40: 0 | I40: 26 | J40: 0 | K40: 1 | L40: 148 | M40: 9 | N40: 0 | O40: 0 | P40: 0 | Q40: 158
A41: 1830 - 1845 | B41: 0 | C41: 1 | D41: 15 | E41: 3 | F41: 1 | G41: 0 | H41: 0 | I41: 20 | J41: 3 | K41: 1 | L41: 140 | M41: 9 | N41: 2 | O41: 1 | P41: 0 | Q41: 156
A42: 1845 - 1900 | B42: 0 | C42: 0 | D42: 22 | E42: 0 | F42: 0 | G42: 0 | H42: 0 | I42: 22 | J42: 0 | K42: 1 | L42: 140 | M42: 6 | N42: 0 | O42: 0 | P42: 0 | Q42: 147
A43: Hourly Total | B43: =SUM(B39:B42) -> 0 | C43: 1 | D43: 92 | E43: 8 | F43: 2 | G43: 0 | H43: 0 | I43: 103 | J43: =SUM(J39:J42) -> 4 | K43: 4 | L43: 603 | M43: 33 | N43: 4 | O43: 1 | P43: 0 | Q43: 649
A45: Session Total | B45: =SUM(B43,B38,B33) -> 0 | C45: 4 | D45: 365 | E45: 28 | F45: 14 | G45: 3 | H45: 1 | I45: 415 | J45: 9 | K45: 15 | L45: 2093 | M45: 158 | N45: 23 | O45: 6 | P45: 4 | Q45: 2308

Sheet J8 Diagram
A1: ='J8 Calver Rd'!A1 -> Warrington - Manual Traffic Survey, Wednesday 3rd April 2019
A2: 1 | B2: J8 Calver Rd | C2: J8 A574 E | D2: J8 A574 W | E2: J8 N/A | F2: J8 N/A | G2: 7 | H2: 2 | I2: FALSE | J2: FALSE | K2: FALSE | L2: FALSE | M2: FALSE | N2: FALSE | O2: 3 | P2: 3 | Q2: 0 | R2: 0 | S2: 12 | T2: 0 | U2: 11 | V2: 23 | W2: 0 | X2: P/CYCLE | Y2: M/CYCLE | Z2: CAR | AA2: LGV | AB2: OGV1 | AC2: OGV2 | AD2: BUS | AE2: ALL CLASSES | AO2: 1) 0700 | AP2: 1) 0715 | AQ2: 1) 0730 | AR2: 1) 0745 | AS2: 1) 0800 | AT2: 1) 0815 | AU2: 1) 0830 | AV2: 1) 0845 | AW2: 1) 0900 | AX2: 1) 0915 | AY2: 1) 0930 | AZ2: 1) 0945 | BA2: 2) 1600 | BB2: 2) 1615 | BC2: 2) 1630 | BD2: 2) 1645 | BE2: 2) 1700 | BF2: 2) 1715 | BG2: 2) 1730 | BH2: 2) 1745 | BI2: 2) 1800 | BJ2: 2) 1815 | BK2: 2) 1830 | BL2: 2) 1845 | EG2: 1) 0715 | EH2: 1) 0730 | EI2: 1) 0745 | EJ2: 1) 0800 | EK2: 1) 0815 | EL2: 1) 0830 | EM2: 1) 0845 | EN2: 1) 0900 | EO2: 1) 0915 | EP2: 1) 0930 | EQ2: 1) 0945 | ER2: 1) 1000 | ES2: 2) 1615 | ET2: 2) 1630 | EU2: 2) 1645 | EV2: 2) 1700 | EW2: 2) 1715 | EX2: 2) 1730 | EY2: 2) 1745 | EZ2: 2) 1800 | FA2: 2) 1815 | FB2: 2) 1830 | FC2: 2) 1845 | FD2: 2) 1900
A3: Produced by Road Data Services Ltd
A5: Junction: | B5: ='J8 Calver Rd'!B5 -> (8) Calver Road / A574
B8: Vehicle Class:
B10: Start Time:
B12: End Time:
F17: Calver Road
L18: NORTH
D19: 1 | H19: 1293
C25: A574 (West) | G25: A574 (East)
D30: 304 | H30: 826
D32: 2257 | H32: 1965
A44: Note: | B44: The above diagram represents the Junction surveyed, although may not be the exact
B45: layout of the actual location.
A47: Important | B47: This spreadsheet & Interactive Vehicle Flow Diagram was produced based on specific
A48: Note: | B48: parameters. Consequently, alteration to the spreadsheet format or it's properties
B49: may result in malfunction.
